bitfinex-derivatives/quotes_SOLF0:USTF0_20250914
["timestamp","ask_amount","ask_price","bid_price","bid_amount"]
[1757889248237,5.58,242.12,242.08,3.43946972]
[1757889248434,5.58,242.12,242.09,6.59]
[1757889249043,6.44500678,242.12,242.09,6.59]
[1757889250146,5.58,242.12,242.09,10.02946972]
[1757889251547,5.58,242.12,242.09,6.59]
[1757889251746,5.59,242.14,242.08,3.43946972]
[1757889251947,6.45500678,242.12,242.08,10.25946972]
[1757889252343,6.45500678,242.12,242.08,3.43946972]
[1757889252548,6.45500678,242.12,242.09,6.82]
[1757889252950,0.86500678,242.12,242.1,6.82]
[1757889258455,5.59,242.14,242.1,6.82]
[1757889258756,0.86500678,242.15,242.11,6.82]
[1757889258956,0.86500678,242.15,242.1,3.43946972]
[1757889259348,0.86500678,242.15,242.11,6.82]
[1757889260253,6.45500678,242.15,242.11,6.82]
[1757889261051,5.59,242.21,242.12,6.82]
[1757889261357,5.59,242.21,242.15,6.82]
[1757889264753,5.59,242.21,242.15,10.25946972]
[1757889265358,5.59,242.21,242.15,6.82]
[1757889267964,5.59,242.18,242.13,3.43946972]
[1757889268252,5.59,242.18,242.12,3.43946972]
[1757889269663,6.45500678,242.19,242.13,3.43946972]
[1757889270256,0.86500678,242.18,242.12,3.43946972]
[1757889270457,0.86500678,242.15,242.12,3.43946972]
[1757889270662,5.59,242.14,242.11,10.25946972]
[1757889271157,0.86500678,242.18,242.11,10.25946972]
[1757889271862,5.59,242.2,242.11,10.25946972]
[1757889272864,80.65,242.2,242.12,6.82]
[1757889273262,80.65,242.2,242.12,10.25946972]
[1757889273564,80.65,242.2,242.12,6.82]
[1757889273762,5.59,242.2,242.12,6.82]
[1757889274166,5.59,242.2,242.12,10.25946972]
[1757889274961,5.59,242.2,242.13,6.82]
[1757889276266,5.59,242.24,242.16,6.82]
[1757889278271,106.97,242.24,242.16,6.82]
[1757889280671,101.38,242.23,242.16,6.82]
[1757889280869,101.36,242.23,242.16,6.82]
[1757889282373,101.36,242.23,242.16,10.25946972]
[1757889282972,5.59,242.24,242.16,10.25946972]
[1757889283174,101.36,242.23,242.16,10.25946972]
[1757889283473,101.36,242.22,242.16,10.25946972]
[1757889284366,101.36,242.22,242.16,6.82]
[1757889285270,5.59,242.24,242.16,6.82]
[1757889285571,101.36,242.21,242.15,10.47946972]
[1757889288873,5.59,242.22,242.15,10.47946972]
[1757889289073,101.36,242.21,242.15,10.47946972]
[1757889290780,5.59,242.2,242.11,10.47946972]
[1757889291478,5.59,242.2,242.11,7.04]
[1757889293677,5.59,242.2,242.11,10.47946972]
[1757889293872,5.59,242.2,242.11,7.04]
[1757889294778,5.58,242.15,242.09,3.43946972]
[1757889294980,5.58,242.15,242.07,6.55]
[1757889295174,97.4,242.14,242.07,6.55]
[1757889295375,97.4,242.14,242.07,9.98946972]
[1757889296283,106.94,242.15,242.07,9.98946972]
[1757889296577,106.94,242.15,242.08,3.43946972]
[1757889298574,5.58,242.15,242.09,6.55]
[1757889298877,5.58,242.23,242.12,9.98946972]
[1757889299076,5.58,242.23,242.13,9.98946972]
[1757889299275,5.58,242.23,242.14,3.43946972]
[1757889299474,5.58,242.23,242.15,6.55]
[1757889299874,5.58,242.23,242.15,9.98946972]
[1757889300275,5.58,242.23,242.12,4.6559883]
[1757889300276,0.71868901,242.28,242.17,9.98946972]
[1757889300478,106.94,242.27,242.18,9.98946972]
[1757889300871,106.94,242.27,242.19,3.43946972]
[1757889301384,5.58,242.27,242.18,9.98946972]
[1757889301577,5.58,242.25,242.18,9.98946972]
[1757889301779,5.58,242.25,242.17,3.43946972]
[1757889301979,5.58,242.25,242.16,3.43946972]
[1757889302176,5.58,242.25,242.17,3.43946972]
[1757889306481,5.58,242.25,242.16,3.43946972]
[1757889306879,5.58,242.21,242.15,3.43946972]
[1757889307182,5.58,242.17,242.11,3.43946972]
[1757889307784,5.58,242.17,242.1,9.98946972]
[1757889308286,5.58,242.2,242.11,6.55]
[1757889308486,1.35054149,242.17,242.11,9.98946972]
[1757889309181,101.34,242.19,242.12,9.98946972]
[1757889309481,5.58,242.18,242.11,3.43946972]
[1757889309685,1.35054149,242.17,242.09,3.43946972]
[1757889310081,6.93054149,242.18,242.09,3.43946972]
[1757889311480,106.94,242.21,242.12,3.43946972]
[1757889311681,106.94,242.21,242.11,3.43946972]
[1757889311682,6.95054149,242.18,242.11,3.43946972]
[1757889312285,6.95054149,242.18,242.1,6.55]
[1757889313183,6.95054149,242.18,242.08,3.43946972]
[1757889313184,1.35054149,242.18,242.11,3.43946972]
[1757889313386,101.38,242.2,242.12,6.67]
[1757889313991,6.95054149,242.22,242.12,6.67]
[1757889313992,101.38,242.21,242.12,6.67]
[1757889316401,101.38,242.21,242.12,10.10946972]
[1757889319102,5.6,242.17,242.11,3.43946972]
[1757889319700,101.34,242.17,242.11,10.10946972]
[1757889320497,101.34,242.17,242.11,6.67]
[1757889322213,5.6,242.18,242.11,6.67]
[1757889322412,101.34,242.17,242.11,6.67]
[1757889325811,101.34,242.17,242.11,10.10946972]
[1757889326013,5.6,242.16,242.1,3.43946972]
[1757889326206,5.6,242.16,242.07,11.3259883]
[1757889326207,5.6,242.16,242.09,3.43946972]
[1757889326814,5.6,242.16,242.08,3.43946972]
[1757889327018,101.34,242.15,242.07,6.67]
[1757889327715,5.6,242.16,242.07,6.67]
[1757889328009,5.6,242.16,242.08,6.67]
[1757889328410,106.94,242.16,242.08,6.67]
[1757889329313,5.6,242.16,242.08,6.67]
[1757889331114,0.71877065,242.25,242.08,6.67]
[1757889331312,5.6,242.21,242.1,1.35054149]
[1757889331519,5.6,242.21,242.11,6.67]
[1757889331817,5.6,242.21,242.14,6.67]
[1757889332411,4.60408448,242.33,242.15,0.86392389]
[1757889332412,5.6,242.28,242.15,0.86392389]
[1757889332720,5.6,242.26,242.16,6.67]
[1757889332913,5.6,242.24,242.16,6.67]
[1757889334210,5.6,242.24,242.12,5.51991219]
[1757889334415,5.6,242.24,242.13,6.67]
[1757889334615,5.6,242.24,242.16,6.67]
[1757889338521,5.6,242.21,242.13,0.86392389]
[1757889338821,5.6,242.21,242.13,7.53392389]
[1757889339219,5.6,242.21,242.13,6.67]
[1757889343727,101.74,242.25,242.13,6.67]
[1757889343728,0.86392389,242.19,242.13,6.67]
[1757889343929,5.59,242.18,242.08,6.95]
[1757889344430,0.86392389,242.16,242.08,6.95]
[1757889345829,5.59,242.15,242.08,6.95]
[1757889349034,0.86392389,242.16,242.08,6.95]
[1757889350036,6.45392389,242.16,242.08,6.95]
[1757889361044,0.86392389,242.13,242.03,4.6559883]
[1757889361246,5.59,242.12,242.05,6.85]
[1757889362144,0.86392389,242.16,242.05,6.85]
[1757889366254,0.86392389,242.16,242.07,3.47048027]
[1757889366449,0.86392389,242.16,242.08,6.85]
[1757889367143,9.0,242.23,242.07,3.47048027]
[1757889367144,0.86392389,242.21,242.11,6.85]
[1757889367343,6.45392389,242.22,242.13,6.85]
[1757889367548,6.45392389,242.16,242.09,3.47048027]
[1757889367757,6.45392389,242.13,242.07,3.47048027]
[1757889367949,6.45392389,242.13,242.06,6.85]
[1757889368152,6.45392389,242.1,242.06,6.85]
[1757889368353,9.0,242.22,242.06,6.85]
[1757889368354,0.86392389,242.13,242.06,6.85]
[1757889385468,5.59,242.12,242.06,6.85]
[1757889389577,5.59,242.12,242.05,3.47048027]
[1757889389778,5.59,242.12,242.03,6.46]
[1757889389779,5.59,242.12,242.04,3.47048027]
[1757889390977,5.59,242.12,242.05,6.46]
[1757889391776,5.59,242.09,242.05,6.46]
[1757889392080,5.59,242.09,242.02,10.06048027]
[1757889392270,0.86392389,242.07,242.02,10.06048027]
[1757889392475,6.45392389,242.07,242.03,6.59]
[1757889393177,5.59,242.06,242.03,6.59]
[1757889393586,0.86392389,242.07,242.03,6.59]
[1757889393787,1.35191776,242.08,242.03,6.59]
[1757889393978,5.59,242.07,242.03,6.59]
[1757889394181,1.35191776,242.08,242.03,6.59]
[1757889394784,5.59,242.07,241.96,4.6559883]
[1757889395087,5.59,242.07,241.97,6.59]
[1757889402383,1.35191776,242.26,242.06,1.35191776]
[1757889402585,5.6,242.26,242.11,6.52]
[1757889402788,5.6,242.26,242.17,3.46988346]
[1757889402992,5.6,242.26,242.19,6.52]
[1757889403492,54.96133529,242.27,242.19,6.52]
[1757889404092,54.96133529,242.27,242.2,3.83976805]
[1757889404392,54.96133529,242.27,242.21,3.83976805]
[1757889404593,54.96133529,242.27,242.23,6.52]
[1757889404794,54.96133529,242.27,242.24,3.83976805]
[1757889404990,54.96133529,242.27,242.26,6.52]
[1757889405389,102.46,242.33,242.26,6.52]
[1757889413295,5.6,242.29,242.26,6.52]
[1757889418797,1.35191776,242.3,242.25,12.50394822]
[1757889419002,5.58,242.29,242.22,7.1]
[1757889419702,5.58,242.29,242.22,19.2229917]
[1757889419902,5.58,242.29,242.22,7.1]
[1757889420303,103.37191776,242.3,242.22,7.1]
[1757889420505,5.58,242.25,242.16,7.1]
[1757889420696,1.35191776,242.22,242.16,19.19256317]
[1757889420901,6.93191776,242.22,242.16,7.1]
[1757889421603,60.23191776,242.22,242.16,7.1]
[1757889422399,60.23191776,242.22,242.07,33.52063783]
[1757889422701,60.23191776,242.22,242.08,7.1]
[1757889424908,5.58,242.21,242.08,7.1]
[1757889425805,57.84,242.22,242.08,7.1]
[1757889426012,57.84,242.22,242.09,7.1]
[1757889427309,61.1,242.24,242.09,7.1]
[1757889428207,5.58,242.25,242.09,7.1]
[1757889428406,1.35191776,242.28,242.13,7.1]
[1757889428612,1.35191776,242.28,242.14,7.1]
[1757889429312,1.35191776,242.28,242.14,10.56988346]
[1757889429510,1.35191776,242.28,242.15,7.1]
[1757889436314,1.35191776,242.28,242.15,3.4403013]
[1757889436614,1.35191776,242.28,242.16,7.05]
[1757889438821,1.35191776,242.24,242.16,7.05]
[1757889439118,5.58,242.19,242.12,7.05]
[1757889442116,5.58,242.15,242.08,7.05]
[1757889446432,1.35191776,242.1,242.06,12.11144984]
[1757889446621,1.35191776,242.1,242.03,10.4903013]
[1757889446622,5.58,242.09,242.03,10.4903013]
[1757889447825,5.58,242.09,242.03,12.16471986]
[1757889448029,5.58,242.09,242.01,3.4403013]
[1757889448923,5.58,242.09,242.0,10.4903013]
[1757889449121,1.35191776,242.14,242.0,10.4903013]
[1757889449122,1.35191776,242.14,242.0,7.05]
[1757889449323,5.58,242.07,242.0,7.05]
[1757889450631,5.58,242.07,242.0,19.43925681]
[1757889450932,5.58,242.07,242.0,7.05]
[1757889453836,0.86519777,242.06,242.0,7.05]
[1757889454941,0.86519777,242.06,242.0,19.53217561]
[1757889460146,0.86519777,242.06,242.0,12.48217561]
[1757889460345,0.86519777,242.15,242.03,7.05]
[1757889460548,0.86519777,242.15,242.05,0.86519777]
[1757889460747,0.86519777,242.15,242.06,7.05]
[1757889460946,0.86519777,242.12,242.06,7.05]
[1757889461151,0.86519777,242.09,242.06,7.05]
[1757889461351,6.44519777,242.09,242.06,7.05]
[1757889461954,0.86519777,242.09,242.06,7.05]
[1757889462152,0.86519777,242.09,242.0,12.22941941]
[1757889462352,0.86519777,242.09,242.01,6.75]
[1757889463548,0.86519777,242.06,242.01,6.75]
[1757889463754,0.86519777,242.06,242.0,12.16200817]
[1757889463953,0.86519777,242.06,242.01,6.75]
[1757889464255,0.86519777,242.06,241.98,6.75]
[1757889465246,0.86519777,242.09,241.99,6.75]
[1757889465451,0.86519777,242.09,242.0,6.75]
[1757889467146,0.86519777,242.06,242.0,6.75]
[1757889481361,0.86519777,242.03,241.97,6.51]
[1757889483467,0.86519777,242.03,241.97,18.83139748]
[1757889483661,0.86519777,242.03,241.98,6.51]
[1757889483962,0.86519777,242.03,241.99,6.51]
[1757889484162,0.86519777,242.07,241.99,9.95924627]
[1757889484360,47.84519777,242.07,242.01,6.51]
[1757889486365,47.84519777,242.07,242.01,9.98023056]
[1757889486667,47.84519777,242.07,241.98,4.6559883]
[1757889486668,5.59,242.03,241.98,3.47023056]
[1757889486969,6.45519777,242.01,241.98,6.51]
[1757889489866,0.86519777,242.01,241.98,6.51]
[1757889491367,0.86519777,242.01,241.97,6.85]
[1757889491764,0.86519777,242.01,241.98,6.85]
[1757889492275,0.86519777,242.01,241.97,6.85]
[1757889492570,0.86519777,242.01,241.96,16.01270881]
[1757889492571,0.86519777,242.01,241.98,6.85]
[1757889493773,6.45519777,242.01,241.98,6.85]
[1757889495470,0.86519777,242.01,241.94,10.32023056]
[1757889496170,0.86519777,242.01,241.94,22.76585219]
[1757889497275,0.86519777,242.01,241.94,6.85]
[1757889498973,107.17,242.0,241.93,6.85]
[1757889499172,0.86519777,241.98,241.92,6.85]
[1757889500869,101.62,241.97,241.91,6.85]
[1757889501066,0.86519777,241.98,241.91,6.85]
[1757889501270,20.78,241.97,241.91,6.85]
[1757889501778,47.42,241.97,241.91,6.85]
[1757889502574,72.72,241.97,241.91,6.85]
[1757889503173,78.31,241.97,241.91,6.85]
[1757889504373,5.59,241.94,241.86,6.85]
[1757889505074,0.86519777,241.92,241.86,6.85]
[1757889506576,0.86519777,241.93,241.86,6.85]
[1757889506778,101.58,241.92,241.86,6.85]
[1757889506976,54.3228949,241.97,241.86,6.85]
[1757889507280,54.3228949,241.97,241.87,10.32023056]
[1757889507480,59.8,241.96,241.88,6.85]
[1757889508377,101.62,241.96,241.88,6.85]
[1757889510482,54.3228949,241.97,241.88,6.85]
[1757889510782,101.6,241.96,241.88,6.85]
[1757889511282,101.58,241.96,241.88,6.85]
[1757889513382,101.58,241.95,241.88,6.85]
[1757889514082,6.45519777,241.94,241.87,3.47023056]
[1757889514283,101.58,241.93,241.85,12.62008517]
[1757889514482,101.58,241.93,241.84,10.32023056]
[1757889514887,6.45519777,241.91,241.84,19.46688777]
[1757889515089,6.45519777,241.91,241.84,6.85]
[1757889515788,5.59,241.91,241.84,6.85]
[1757889520089,101.6,241.9,241.84,6.85]
[1757889520790,5.59,241.91,241.84,6.85]
[1757889520989,101.6,241.9,241.84,6.85]
[1757889523390,101.6,241.9,241.84,19.00942176]
[1757889523587,101.6,241.89,241.84,12.15942176]
[1757889523791,101.6,241.89,241.83,3.47023056]
[1757889523993,101.6,241.89,241.84,6.84]
[1757889524193,5.6,241.91,241.83,3.47023056]
[1757889524489,42.72,241.9,241.84,6.84]
[1757889524891,5.6,241.89,241.83,3.47023056]
[1757889525091,1.35360442,241.87,241.8,3.47023056]
[1757889525290,5.6,241.86,241.8,12.37718461]
[1757889525486,5.6,241.86,241.79,6.84]
[1757889527295,5.6,241.86,241.76,3.47023056]
[1757889528197,5.6,241.82,241.75,6.84]
[1757889528497,63.0,241.81,241.75,6.84]
[1757889528894,63.0,241.81,241.73,3.47023056]
[1757889529091,5.6,241.8,241.73,3.47023056]
[1757889530196,5.6,241.78,241.7,3.47023056]
[1757889530405,79.68,241.77,241.69,10.31023056]
[1757889531099,82.78,241.77,241.7,6.84]
[1757889531296,1.35360442,241.83,241.7,6.84]
[1757889531297,6.95360442,241.83,241.7,6.84]
[1757889531597,80.4,241.78,241.7,6.84]
[1757889532597,5.6,241.8,241.7,6.84]
[1757889532802,83.46,241.79,241.7,10.31023056]
[1757889534196,83.46,241.79,241.7,6.84]
[1757889534797,5.6,241.78,241.7,6.84]
[1757889535398,91.96,241.78,241.7,6.84]
[1757889537907,91.96,241.78,241.7,19.4791055]
[1757889538105,5.6,241.77,241.7,19.4791055]
[1757889538903,89.12,241.8,241.71,6.5]
[1757889539905,5.6,241.81,241.71,6.5]
[1757889540205,107.24,241.81,241.71,6.5]
[1757889540703,5.6,241.81,241.71,6.5]
[1757889540900,5.6,241.85,241.73,9.97023056]
[1757889541202,5.6,241.85,241.76,6.5]
[1757889542004,5.6,241.85,241.76,3.47023056]
[1757889542203,5.6,241.85,241.77,6.5]
[1757889543405,9.0,242.02,241.77,6.5]
[1757889543406,59.07360442,241.91,241.77,6.5]
[1757889543706,59.07360442,241.91,241.78,6.5]
[1757889543707,5.6,241.9,241.78,6.5]
[1757889543903,5.6,241.86,241.75,9.97023056]
[1757889544098,5.6,241.82,241.75,6.5]
[1757889544906,5.6,241.82,241.73,3.47023056]
[1757889546508,5.6,241.82,241.74,6.5]
[1757889547310,5.6,241.78,241.7,22.24309242]
[1757889548307,1.35360442,241.79,241.72,6.5]
[1757889549210,6.95360442,241.79,241.72,6.5]
[1757889552314,1.35360442,241.86,241.72,6.5]
[1757889552611,5.6,241.85,241.73,3.46339753]
[1757889552808,5.6,241.85,241.74,3.46339753]
[1757889553013,5.6,241.85,241.76,6.69]
[1757889553908,5.6,241.85,241.76,10.15339753]
[1757889554109,5.6,241.85,241.77,3.46339753]
[1757889554305,5.6,241.85,241.76,6.69]
[1757889554306,5.6,241.85,241.78,3.46339753]
[1757889557015,5.6,241.88,241.79,6.69]
[1757889558217,5.6,241.88,241.79,10.15339753]
[1757889560019,1.35360442,241.89,241.79,10.15339753]
[1757889560214,5.6,241.88,241.79,10.15339753]
[1757889560514,1.35360442,241.89,241.79,10.15339753]
[1757889560721,1.35360442,241.85,241.77,3.46339753]
[1757889560922,1.35360442,241.85,241.75,10.15339753]
[1757889561222,5.6,241.82,241.75,10.15339753]
[1757889563423,5.6,241.82,241.75,6.69]
[1757889563724,5.6,241.82,241.73,3.46339753]
[1757889564520,5.6,241.82,241.75,6.69]
[1757889564720,5.6,241.82,241.75,10.15339753]
[1757889566116,5.6,241.87,241.76,10.15339753]
[1757889566327,5.6,241.87,241.77,6.69]
[1757889566622,5.6,241.87,241.77,10.15339753]
[1757889567215,5.6,241.87,241.78,3.46339753]
[1757889567414,5.6,241.85,241.78,3.46339753]
[1757889567624,5.6,241.85,241.77,10.15339753]
[1757889567825,5.6,241.85,241.77,6.69]
[1757889568118,5.6,241.85,241.75,3.46339753]
[1757889568419,1.35360442,241.84,241.75,3.46339753]
[1757889568624,5.6,241.83,241.75,3.46339753]
[1757889572028,5.6,241.83,241.73,3.46339753]
[1757889572326,5.6,241.83,241.74,3.46339753]
[1757889574132,5.6,241.88,241.81,3.46339753]
[1757889574431,5.6,241.88,241.82,6.69]
[1757889576625,5.6,241.95,241.84,6.69]
[1757889576929,29.1,241.95,241.87,3.46339753]
[1757889577128,29.1,241.95,241.84,6.69]
[1757889577833,5.6,241.92,241.84,6.69]
[1757889578730,5.6,241.92,241.84,10.15339753]
[1757889579325,5.6,241.92,241.84,6.69]
[1757889580735,5.6,241.92,241.83,3.46339753]
[1757889580939,5.6,241.89,241.8,10.15339753]
[1757889582133,0.86616459,241.87,241.8,6.69]
[1757889582336,6.47616459,241.84,241.8,6.69]
[1757889582536,0.86616459,241.87,241.79,3.46339753]
[1757889584338,0.86616459,241.87,241.8,7.18]
[1757889585640,6.47616459,241.84,241.77,3.46339753]
[1757889588342,6.47616459,241.84,241.76,10.64339753]
[1757889588739,6.47616459,241.84,241.76,7.18]
[1757889591146,0.86616459,241.81,241.76,7.18]
[1757889591440,5.61,241.8,241.76,7.18]
[1757889591643,5.61,241.85,241.76,7.18]
[1757889591944,6.47616459,241.85,241.77,7.18]
[1757889594547,6.47616459,241.85,241.77,10.64339753]
[1757889596848,5.61,241.84,241.77,7.18]
[1757889598448,0.86616459,241.86,241.78,10.41339753]
[1757889600347,14.61,241.88,241.79,3.46339753]
[1757889600546,0.86616459,241.87,241.79,3.46339753]
[1757889601751,0.86616459,241.87,241.78,10.41339753]
[1757889602247,0.86616459,241.84,241.78,10.41339753]
[1757889602452,0.86616459,241.84,241.78,6.95]
[1757889602750,14.61,241.88,241.78,6.95]
[1757889602751,0.86616459,241.8,241.78,6.95]
[1757889605655,0.86616459,241.8,241.76,3.46339753]
[1757889605656,0.86616459,241.8,241.77,6.95]
[1757889607057,0.86616459,241.8,241.74,3.46339753]
[1757889608453,0.86616459,241.8,241.74,10.41339753]
[1757889609356,0.86616459,241.8,241.75,6.95]
[1757889609557,0.86616459,241.8,241.74,3.46339753]
[1757889610160,0.86616459,241.8,241.75,3.47604213]
[1757889610560,0.86616459,241.8,241.74,3.47604213]
[1757889610963,0.86616459,241.8,241.76,6.95]
[1757889611660,0.86616459,241.8,241.76,6.73]
[1757889611954,0.86616459,241.8,241.75,3.47604213]
[1757889612363,0.86616459,241.8,241.76,6.73]
[1757889612759,0.86616459,241.8,241.75,3.47604213]
[1757889613261,6.47616459,241.8,241.74,10.20604213]
[1757889613457,6.47616459,241.8,241.74,6.73]
[1757889623265,6.47616459,241.8,241.74,10.20604213]
[1757889623871,9.86616459,241.85,241.75,3.47604213]
[1757889624072,0.86616459,241.85,241.77,3.47604213]
[1757889624370,0.86616459,241.85,241.78,6.73]
[1757889625270,0.86616459,241.85,241.78,10.20604213]
[1757889628474,0.86616459,241.85,241.79,6.73]
[1757889628980,0.86616459,241.9,241.84,10.20604213]
[1757889629475,0.86616459,241.9,241.84,6.73]
[1757889629674,0.86616459,241.9,241.84,10.20604213]
[1757889630466,5.61,241.93,241.85,6.73]
[1757889630677,0.86616459,241.92,241.85,6.73]
[1757889632275,0.86616459,241.95,241.85,10.20604213]
[1757889632474,0.86616459,241.95,241.86,7.11]
[1757889634071,0.86616459,241.96,241.86,7.11]
[1757889634270,0.86616459,241.96,241.86,10.58604213]
[1757889634575,0.86616459,241.96,241.87,7.11]
[1757889638282,5.6,241.97,241.87,7.11]
[1757889638481,6.46616459,241.97,241.87,7.11]
[1757889639781,5.6,241.97,241.87,7.11]
[1757889641976,66.40067395,242.03,241.87,7.11]
[1757889641977,5.6,242.01,241.87,8.46283969]
[1757889642174,5.6,242.01,241.9,7.08]
[1757889642377,66.40067395,242.03,241.91,4.82888182]
[1757889642574,66.40067395,242.03,241.92,7.08]
[1757889651392,5.6,242.02,241.92,7.08]
[1757889654490,5.6,242.06,241.92,7.08]
[1757889654693,5.6,242.11,241.96,7.08]
[1757889655590,5.59,242.28,242.03,1.35283969]
[1757889655794,5.59,242.21,242.04,7.15]
[1757889658295,5.59,242.21,242.08,7.15]
[1757889658495,5.59,242.21,242.08,19.37787036]
[1757889658696,5.59,242.21,242.09,7.15]
[1757889661493,0.71870385,242.3,242.09,7.15]
[1757889661695,5.59,242.3,242.21,7.15]
[1757889662589,0.7184442,242.37,242.26,1.35283969]
[1757889662793,140.48400346,242.57,242.36,7.15]
[1757889662996,5.59,242.72,242.51,7.15]
[1757889663196,12.39651067,242.85,242.58,1.35283969]
[1757889663398,5.59,242.77,242.59,7.15]
[1757889663704,277.56,243.01,242.4,4.82888182]
[1757889663705,5.59,242.69,242.41,7.15]
[1757889664002,5.46,242.72,242.45,1.35283969]
[1757889664190,5.46,242.72,242.43,7.15]
[1757889664191,1.35283969,242.6,242.46,7.15]
[1757889664901,5.59,242.59,242.46,7.15]
[1757889667200,5.59,242.59,242.48,1.35283969]
[1757889668002,5.59,242.64,242.52,1.35283969]
[1757889672104,5.59,242.64,242.49,7.15]
[1757889673802,5.58,242.73,242.57,7.09]
[1757889674901,34.27012883,242.74,242.57,7.09]
[1757889675105,56.38,242.73,242.57,7.09]
[1757889675300,5.58,242.68,242.57,7.09]
[1757889677908,1.35283969,242.69,242.52,7.09]
[1757889678108,5.58,242.68,242.52,7.09]
[1757889678504,11.06,242.68,242.52,7.09]
[1757889680311,1.35283969,242.66,242.52,7.09]
[1757889680614,5.58,242.65,242.52,7.09]
[1757889689520,2.07012883,242.74,242.59,1.35283969]
[1757889689521,5.58,242.72,242.59,1.35283969]
[1757889689714,5.58,242.72,242.6,7.09]
[1757889691612,5.58,242.72,242.54,1.35283969]
[1757889691813,45.26,242.71,242.55,7.09]
[1757889692214,72.52,242.7,242.55,7.09]
[1757889692922,5.58,242.69,242.55,7.09]
[1757889693421,102.8,242.68,242.55,7.09]
[1757889693719,5.58,242.67,242.55,7.09]
[1757889694027,102.8,242.68,242.55,7.09]
[1757889694227,5.58,242.67,242.55,7.09]
[1757889694425,102.8,242.68,242.55,7.09]
[1757889694621,0.71728914,242.74,242.46,7.09]
[1757889694622,1.35283969,242.65,242.46,7.09]
[1757889694818,103.02,242.67,242.46,7.09]
[1757889694819,1.35283969,242.61,242.46,7.09]
[1757889695020,5.58,242.6,242.46,7.09]
[1757889695927,20.42,242.6,242.46,7.09]
[1757889697228,26.26,242.6,242.46,7.09]
[1757889698131,5.58,242.59,242.46,7.09]
[1757889698424,5.58,242.59,242.48,1.35283969]
[1757889699729,5.58,242.59,242.5,0.86140916]
[1757889705134,5.58,242.59,242.46,7.09]
[1757889705334,5.58,242.59,242.5,0.86140916]
[1757889705739,5.58,242.59,242.53,0.86140916]
[1757889705933,6.44140916,242.66,242.56,0.86140916]
[1757889706132,13.56,242.65,242.56,0.86140916]
[1757889706332,5.58,242.64,242.56,0.86140916]
[1757889707336,39.5,242.64,242.56,0.86140916]
[1757889708240,5.58,242.64,242.56,0.86140916]
[1757889708437,71.72,242.64,242.56,0.86140916]
[1757889708838,5.58,242.62,242.53,0.86140916]
[1757889710236,5.58,242.6,242.52,0.86140916]
[1757889710839,108.28,242.6,242.52,0.86140916]
[1757889715339,102.58,242.59,242.52,0.86140916]
[1757889715842,102.56,242.58,242.52,0.86140916]
[1757889716337,102.54,242.57,242.52,0.86140916]
[1757889716537,5.57,242.56,242.52,0.86140916]
[1757889719043,5.57,242.56,242.49,7.66140916]
[1757889720144,5.57,242.56,242.49,11.02446157]
[1757889720343,5.57,242.56,242.5,3.36305241]
[1757889720738,5.57,242.7,242.54,6.91]
[1757889720944,5.57,242.68,242.56,0.86140916]
[1757889721246,5.57,242.65,242.56,0.86140916]
[1757889721545,102.42,242.64,242.56,0.86140916]